Cogmind - Beta 11.1 *** ADVENTURER MODE // 2022.07.19 @ 23:17:45 Player: BakkieSloot Result: Destroyed by G-47 Trooper with Particle Gun Performance ------------- Evolutions (2) 1000 Regions Visited (5) 1000 Robots Destroyed (16) 80 Value Destroyed (517) 517 Prototype IDs (2) 40 Alien Tech Used (0) 0 Bonus (0) 0 TOTAL SCORE: 2637 Bonus ------- None Cogmind --------- Core Integrity 0/550 Matter 300/300 Energy 100/100 System Corruption 0% Temperature Cool (9) Movement Core (50) Location -8/Materials Parts ------- > --- POWER (2) -------- (None) > --- PROPULSION (3) --- (None) > --- UTILITY (4) ------ Visual Processing Unit > --- WEAPON (2) ------- (None) > --- INVENTORY (5) ---- Improved Sensor Array Utility Shielding Improved Weapon Shielding Peak State ------------ > --- POWER ------------ Light Ion Engine Light Angular Momentum Engine > --- PROPULSION ------- Combat Airjet > --- UTILITY ---------- Small Storage Unit Medium Matter Pod Visual Processing Unit Experimental Sensor Array > --- WEAPON ----------- Advanced Beam Rifle Light Assault Rifle > --- INVENTORY -------- (None) [Rating: 29] Favorites ----------- Power Light Ion Engine Engine Light Ion Engine Power Core Light Nuclear Core Propulsion Wheel Wheel Wheel Hover Unit Combat Airjet Flight Unit Flight Unit Utility Medium Matter Pod Device Experimental Sensor Array Storage Medium Matter Pod Processor Targeting Computer Weapon Medium Laser Energy Gun Medium Laser Ballistic Gun Light Assault Rifle Ballistic Cannon Light Cannon Build | -11 -10 -10 -10 -9 -8 ------- Run | Scr Mat Min Exi Min Mat Slots Evolved 4 | . . . . . 4 Power 1 | . . . . . 1 Propulsion 1 | . . . . . 1 Utility 2 | . . . . . 2 Weapon . | . . . . . . Parts Attached 23 | 6 3 . . 4 10 Power 5 | 1 . . . . 4 Engine 3 | 1 . . . . 2 Core 2 | . . . . . 2 Reactor . | . . . . . . Propulsion 5 | 2 . . . 3 . Treads . | . . . . . . Leg . | . . . . . . Wheel 3 | 2 . . . 1 . Hover 1 | . . . . 1 . Flight 1 | . . . . 1 . Utility 7 | . 2 . . . 5 Device 2 | . . . . . 2 Storage 2 | . 1 . . . 1 Processor 3 | . 1 . . . 2 Hackware . | . . . . . . Protection . | . . . . . . Artifact . | . . . . . . Weapon 6 | 3 1 . . 1 1 Energy Gun 2 | 1 . . . . 1 Energy Cannon . | . . . . . . Ballistic Gun 3 | 2 . . . 1 . Ballistic Cannon 1 | . 1 . . . . Launcher . | . . . . . . Special Weapon . | . . . . . . Impact Weapon . | . . . . . . Slashing Weapon . | . . . . . . Piercing Weapon . | . . . . . . Special Melee Weapon . | . . . . . . Unidentified Prototypes 2 | . . . . . 2 Parts Lost 14 | . . . . 1 13 Power 5 | . . . . . 5 Propulsion 1 | . . . . . 1 Utility 6 | . . . . 1 5 Weapon 2 | . . . . . 2 Highest Loss Streak 6 | . . . . 1 6 To Critical Strikes . | . . . . . . Average Slot Usage (%) 85 | . 82 100 100 86 67 Engine 12 | . 14 14 14 14 7 Core 2 | . . . . . 6 Wheel 18 | . 28 28 28 21 . Hover 3 | . . . . 3 8 Device 2 | . . . . . 8 Storage 12 | . 8 14 14 14 13 Processor 10 | . 2 14 14 4 11 Energy Gun 11 | . 14 14 14 11 7 Ballistic Gun 1 | . 2 . . 2 3 Ballistic Cannon 9 | . 11 14 14 14 . Naked Turns . | . . . . . . Heaviest Build 23 | 7 10 10 10 10 23 Greatest Support 20 | 20 20 20 20 20 12 Greatest Overweight (x) 1 | . . . . . 1 Average Overweight (x) . | . . . . . . Largest Inventory Capacity 8 | 5 5 5 5 5 8 Average Capacity 5 | 5 5 5 5 5 7 Most Carried 5 | 4 5 5 5 5 3 Average Carried 3 | . 4 4 5 4 . Final Capacity 5 | 5 5 5 5 5 5 Final Carried 5 | . 4 5 5 4 3 Class Distribution -------------------- 70% | Mutant 29% | Scavenger-Mutant Dominant Class ---------------- Mutant | -10/Materials Mutant | -10/Mines Mutant | -10/Exiles Mutant | -9/Mines Scavenger-Mutant | -8/Materials Resources | -11 -10 -10 -10 -9 -8 ----------- Run | Scr Mat Min Exi Min Mat Matter Collected 623 | 266 156 14 . 60 127 Remotely . | . . . . . . Salvage Created 586 | 46 57 . . 78 405 Parts 26 | 2 7 . . 3 14 Haulers Intercepted . | . . . . . . Recyclers Shooed 1 | . . . . . 1 Parts Field Recycled . | . . . . . . Retrieved Matter . | . . . . . . Parts Self-Destructed . | . . . . . . Prevented . | . . . . . . Kills | -11 -10 -10 -10 -9 -8 ------- Run | Scr Mat Min Exi Min Mat Combat Hostiles Destroyed 13 | 1 3 . . 2 7 Guns 10 | 1 1 . . 1 7 Cannons 3 | . 2 . . 1 . Classes Destroyed 6 | 1 3 . . 1 1 Worker 1 | . 1 . . . . Watcher 2 | . 1 . . . 1 Swarmer 3 | . 3 . . . . Grunt 8 | 1 . . . 1 6 Duelist 1 | . . . . 1 . Sentry 1 | . . . . . 1 Best Kill Streak 5 | 1 5 . . 2 4 Combat Bots Only 4 | 1 3 . . 2 4 Max Kills in Single Turn 2 | 1 2 . . 1 1 Gunslinging . | . . . . . . Exploded . | . . . . . . Melee . | . . . . . . Uniques/NPCs Destroyed . | . . . . . . Combat | -11 -10 -10 -10 -9 -8 -------- Run | Scr Mat Min Exi Min Mat Damage Taken 1567 | 8 121 30 . 161 1247 Core 614 | . 27 . . 37 550 Absorbed by Shields . | . . . . . . Core Remaining (%) 87 | 100 . . . 74 . Volleys Fired 60 | 2 9 1 . 6 42 Largest 2 | 2 2 2 . 2 2 Hottest 85 | 70 85 85 . 85 81 Shots Fired 92 | 4 17 2 . 12 57 Gun 76 | 4 8 1 . 6 57 Cannon 16 | . 9 1 . 6 . Launcher . | . . . . . . Special . | . . . . . . Kinetic 36 | 2 9 1 . 6 18 Thermal 56 | 2 8 1 . 6 39 Explosive . | . . . . . . Electromagnetic . | . . . . . . Robot Hit Streak 16 | 3 3 3 . 7 16 Robot Miss Streak 4 | . 2 . . 2 4 Penetration Max . | . . . . . . Secondary Targets . | . . . . . . Shots Hit Robots 65 | 3 10 2 . 7 43 Core Hits 26 | 2 5 . . 3 16 Critical Kills . | . . . . . . Critical Parts Destroyed . | . . . . . . Critical Strikes 3 | . 1 . . . 2 Burn 2 | . . . . . 2 Blast 1 | . 1 . . . . Melee Attacks . | . . . . . . Impact . | . . . . . . Slashing . | . . . . . . Piercing . | . . . . . . Sneak Attacks . | . . . . . . Combat Hostiles . | . . . . . . Follow-up Attacks . | . . . . . . Damage Inflicted 1065 | 36 202 33 . 99 695 Guns 855 | 36 63 13 . 48 695 Cannons 210 | . 139 20 . 51 . Explosions . | . . . . . . Melee . | . . . . . . Ramming . | . . . . . . Kinetic 317 | 12 139 20 . 51 95 Thermal 748 | 24 63 13 . 48 600 Explosive . | . . . . . . Electromagnetic . | . . . . . . Impact . | . . . . . . Slashing . | . . . . . . Piercing . | . . . . . . Highest Corruption 4 | . . . . 4 . Average Corruption 4 | . . . . 4 . Corruption Purged . | . . . . . . Corruption Blocked . | . . . . . . Effects 2 | . . . . 2 . Matter Fused 2 | . . . . 2 . Overload Shots . | . . . . . . Overflow Damage . | . . . . . . Projectiles . | . . . . . . Explosions . | . . . . . . Melee . | . . . . . . Knockbacks 1 | . 1 . . . . Impact . | . . . . . . Kinetic 1 | . 1 . . . . Secondary . | . . . . . . Self-Inflicted Damage . | . . . . . . Shots . | . . . . . . Rammed . | . . . . . . Targets Rammed . | . . . . . . Kicked . | . . . . . . Crushed . | . . . . . . Highest Temperature 332 | 24 144 24 . 150 332 Average Temperature 128 | 13 57 13 . 67 176 Received Heat Transfer 873 | 6 . . . 30 837 Effects 5 | . . . . . 5 Energy Bleed 1 | . . . . . 1 Interference 3 | . . . . . 3 Damage (minor) 1 | . . . . . 1 Siege Activations . | . . . . . . Robots Corrupted . | . . . . . . Combat Hostiles . | . . . . . . Parts Fried . | . . . . . . Impact Corruptions . | . . . . . . Robots Melted . | . . . . . . Combat Hostiles . | . . . . . . Parts Melted 1 | . . . . . 1 Heat Transferred 1702 | 74 185 37 . 148 1258 Parts Sabotaged . | . . . . . . Parts Stolen . | . . . . . . Parts Stripped . | . . . . . . Power Chain Reactions . | . . . . . . Missiles Intercepted . | . . . . . . Alert | -11 -10 -10 -10 -9 -8 ------- Run | Scr Mat Min Exi Min Mat Peak Influence 145 | 20 93 45 . 50 145 Initial 30 | . 11 30 . . 13 Average 69 | 3 62 44 . 39 100 Maximum Alert Level . | . . . . . . Low Security (%) 100 | 100 100 100 . 100 100 Level 1 . | . . . . . . Level 2 . | . . . . . . Level 3 . | . . . . . . Level 4 . | . . . . . . Level 5 . | . . . . . . High Security . | . . . . . . Max Security . | . . . . . . Squads Dispatched 3 | . 2 . . . 1 Investigation 2 | . 2 . . . . Extermination . | . . . . . . Reinforcement 1 | . . . . . 1 Assault . | . . . . . . Garrison . | . . . . . . Intercept . | . . . . . . Searches Triggered . | . . . . . . Construction Impeded . | . . . . . . Haulers Reinforced . | . . . . . . Active Scanning Responses . | . . . . . . Cargo Convoy Interrupts . | . . . . . . Stealth | -11 -10 -10 -10 -9 -8 --------- Run | Scr Mat Min Exi Min Mat Distress Signals 4 | . 3 . . . 1 Communications Jammed . | . . . . . . Distress Signals . | . . . . . . Times Spotted 31 | 1 6 3 . 5 16 Peak Tracking Total 6 | 1 4 2 . 2 6 Tactical Retreats 1 | . . . . . 1 Traps | -11 -10 -10 -10 -9 -8 ------- Run | Scr Mat Min Exi Min Mat Traps Triggered . | . . . . . . Indirectly . | . . . . . . Trap Hack Attempts . | . . . . . . Triggered . | . . . . . . Disarmed . | . . . . . . Reprogrammed . | . . . . . . Reused . | . . . . . . Traps Extracted . | . . . . . . Installed . | . . . . . . Triggered . | . . . . . . Machines | -11 -10 -10 -10 -9 -8 ---------- Run | Scr Mat Min Exi Min Mat Machines Disabled . | . . . . . . Max in Single Turn . | . . . . . . Machines Sabotaged . | . . . . . . Garrisons Compromised . | . . . . . . Overloaded Fab Kills . | . . . . . . Hacking | -11 -10 -10 -10 -9 -8 --------- Run | Scr Mat Min Exi Min Mat Machines Accessed 6 | . 4 . 1 . 1 Terminals 3 | . 2 . . . 1 Fabricators . | . . . . . . Repair Stations . | . . . . . . Recycling Units 2 | . 2 . . . . Scanalyzers . | . . . . . . Garrison Access . | . . . . . . Total Hacks 14 | . 10 . 2 . 2 Successful 14 | . 10 . 2 . 2 Failed . | . . . . . . Catastrophic . | . . . . . . Database Lockouts . | . . . . . . Manual . | . . . . . . Terminals 9 | . 7 . . . 2 Fabricators . | . . . . . . Repair Stations . | . . . . . . Recycling Units 3 | . 3 . . . . Scanalyzers . | . . . . . . Garrison Access . | . . . . . . Terminal Hacks 11 | . 7 . 2 . 2 Record 10 | . 6 . 2 . 2 Alert Level 1 | . 1 . . . . Fabricator Hacks . | . . . . . . Repair Station Hacks . | . . . . . . Recycling Unit Hacks 3 | . 3 . . . . Report Inventory 2 | . 2 . . . . Retrieve Components 1 | . 1 . . . . Scanalyzer . | . . . . . . Garrison Access Hacks . | . . . . . . Unauthorized Hacks . | . . . . . . Terminals . | . . . . . . Fabricators . | . . . . . . Repair Stations . | . . . . . . Recycling Units . | . . . . . . Scanalyzers . | . . . . . . Garrison Access . | . . . . . . Data Cores Recovered . | . . . . . . Used . | . . . . . . Hacking Detections 3 | . 3 . . . . Full Trace Events 2 | . 2 . . . . Feedback Events . | . . . . . . Feedback Blocked . | . . . . . . Robot Schematics Acquired . | . . . . . . Robots Built . | . . . . . . Authchips . | . . . . . . Time . | . . . . . . Total Robot Build Rating . | . . . . . . Part Schematics Acquired . | . . . . . . Parts Built . | . . . . . . Authchips . | . . . . . . Time . | . . . . . . Total Part Build Rating . | . . . . . . Parts Repaired . | . . . . . . Time . | . . . . . . Parts Recycled . | . . . . . . Recycled Matter . | . . . . . . Retrieved Matter . | . . . . . . Retrieved Components 3 | . 3 . . . . Parts Scanalyzed . | . . . . . . Part Schematics Acquired . | . . . . . . Parts Damaged . | . . . . . . Bothacking | -11 -10 -10 -10 -9 -8 ------------ Run | Scr Mat Min Exi Min Mat Used RIF Installer . | . . . . . . Robots Hacked . | . . . . . . Non-combat . | . . . . . . Combat . | . . . . . . Robot Hacks Applied . | . . . . . . Relay Couplers Released . | . . . . . . Fabnet Peak Effective % . | . . . . . . Robots Rewired . | . . . . . . Allies Hacked . | . . . . . . Hacks Repelled . | . . . . . . Allies | -11 -10 -10 -10 -9 -8 -------- Run | Scr Mat Min Exi Min Mat Total Allies . | . . . . . . Largest Group . | . . . . . . Highest-Rated Group . | . . . . . . Highest-Rated Ally . | . . . . . . Total Orders . | . . . . . . Ally Attacks . | . . . . . . Total Damage . | . . . . . . Kills . | . . . . . . Allies Corrupted . | . . . . . . Allies Melted . | . . . . . . Intel | -11 -10 -10 -10 -9 -8 ------- Run | Scr Mat Min Exi Min Mat Robot Analysis Total . | . . . . . . Derelict Logs Recovered 1 | . . 1 . . . Drone Launches . | . . . . . . Drone Recoveries . | . . . . . . Exploration | -11 -10 -10 -10 -9 -8 ------------- Run | Scr Mat Min Exi Min Mat Turns Passed 1323 | 71 195 111 415 127 404 Spaces Moved 1182 | 70 195 118 519 115 165 Core 22 | 22 . . . . . Treads . | . . . . . . Legs . | . . . . . . Wheels 970 | 48 195 118 519 90 . Hover 190 | . . . . 25 165 Flight . | . . . . . . Fastest Speed 50 | 50 80 80 80 80 80 Average Speed 88 | 70 80 80 80 80 147 Slowest Speed 150 | 80 80 80 80 80 150 Overloaded Moves . | . . . . . . Propulsion Burnouts . | . . . . . . Robots Hopped . | . . . . . . Cave-ins Triggered . | . . . . . . Exploration Rate (%) 36 | 5 39 37 91 35 12 Regions Visited 5 Branch Regions 3 Pre-discovered Areas . | . . . . . . Known Exits Taken . | . . . . . . Unknown Exits Taken 5 | 1 1 1 1 1 . Scrap Searched 1 | . . 1 . . . Spaces Dug . | . . . . . . Terrain Destroyed . | . . . . . . Melee . | . . . . . . Projectile . | . . . . . . AOE . | . . . . . . Terrain Rammed . | . . . . . . Walls Destroyed . | . . . . . . Machines Disabled . | . . . . . . Actions | -11 -10 -10 -10 -9 -8 --------- Run | Scr Mat Min Exi Min Mat Total 1366 | 88 217 132 518 138 273 Wait 65 | . . 13 . 6 46 Move 1177 | 69 194 117 518 114 165 Hop . | . . . . . . Pick Up 29 | 8 8 1 . 3 9 Fast Attach 1 | . 1 . . . . Attach 17 | 5 1 . . 1 10 Detach . | . . . . . . Swap 5 | 1 1 . . 3 . Drop 12 | 3 3 . . 5 1 Fire 60 | 2 9 1 . 6 42 Melee . | . . . . . . Ram . | . . . . . . Kick . | . . . . . . Crush . | . . . . . . Escape Stasis . | . . . . . . Rewire . | . . . . . . Trap . | . . . . . . Miscellaneous . | . . . . . . Route ------- -11/Scrapyard -10/Materials -10/Mines -10/Exiles (discovered 2 exits: [*Min x2]) -9/Mines -8/Materials History --------- Turn | Location | Event 2 | -11/Scrapyard | Met Revision 17 54 | -11/Scrapyard | Discovered new exit (range 8) 72 | -11/Scrapyard | Entered Materials 177 | -10/Materials | Met 8R-AWN 214 | -10/Materials | Discovered new exit (range 9) 267 | -10/Materials | Entered Mines 268 | -10/Mines | Followed 8R-AWN into the Mines 277 | -10/Mines | Learned Materials non-interactive machine intel 300 | -10/Mines | Build established: Mutant 326 | -10/Mines | Found a damaged Exp. Sensor Array with a note attached 328 | -10/Mines | Found Prototype Device 375 | -10/Mines | Discovered new exit (range 5) 378 | -10/Mines | Entered Exiles 395 | -10/Exiles | Discovered new exit (range 15) 404 | -10/Exiles | Welcomed by 8R-AWN 420 | -10/Exiles | Met EX-HEX 445 | -10/Exiles | Met EX-BIN 506 | -10/Exiles | Met EX-DEC 546 | -10/Exiles | Discovered new exit (range 14) 625 | -10/Exiles | Visited The Gauntlet 763 | -10/Exiles | Learned about 8R-AWN's background 793 | -10/Exiles | Entered Mines 806 | -9/Mines | Met a Derelict bent on vengeance 816 | -9/Mines | Assembled infested the area 821 | -9/Mines | Assisted by a Guerilla fighting off Assembled 901 | -9/Mines | Discovered new exit (range 15) 920 | -9/Mines | Entered Materials 920 | -8/Materials | Evolved 4 slots: Power x1, Propulsion x1, Utility x2 921 | -8/Materials | Loaded intel: 41 non-interactive machine locations 922 | -8/Materials | Identified Exp. Sensor Array 1153 | -8/Materials | Lost 5 parts (2p2u1w) 1305 | -8/Materials | Core integrity fell below 50% 1319 | -8/Materials | Core integrity fell below 20% 1324 | -8/Materials | Destroyed by G-47 Trooper with Particle Gun Last Messages --------------- application of force at the point of impact, leading to less effective results under some conditions. Nonetheless, quite a few Derelicts rely on it as a primary or secondary weapon. [Achievement: Librarian] 01207_ Acquired Utility Shielding. 01213_ Acquired Imp. Weapon Shielding. 01234_ W-25 Informer destroyed. 01246_ Acquired 20 matter. 01249_ Acquired Imp. Sensor Array. 01263_ Adv. Beam Rifle destroyed. 01272_ Terminal disabled. 01294_ Lgt. Nuclear Core destroyed. 01302_ Sml. Storage Unit destroyed. 01305_ Targeting Computer destroyed. 01306_ Critical hit (Burn: +37). 01308_ Lgt. Nuclear Core destroyed. 01312_ Critical hit (Burn: +37). 01314_ Cmb. Airjet destroyed. 01314_ Imp. Heat Sink destroyed. [Achievement: First Step to Greatness] Map ----- +----------------------------------------------------+ | ??????????????????? #??# """ #? | | ???????????????????] #??# """ #? | | ??????"""????????????###############+##### """ #? | | ??????"""???????????????????????# # """ #? | | ??????"""???????????????????????# """ # #? | | ????????????????????????????????# """"" ##+###?? | | ????????????????????????????????# """"" + #???? | | ????????????????????????????????# """"" ## #???? | | ????????????????????????????????# """ ]##%#???? | | ????????????????????????????????# ## #???? | | ????????????????????????????????# ## #???? | | ????????????????????????????????# ## #???? | | ????????????????????????????###########/### #???? | | ???????????????????########?# # ??# #???? | | ???????????????????# #?# """ """ # #?# #???? | | ???????????????????# #?# """ """ # #?# #???? | | ???????????????????# """ ### """ """ # #?# #???? | | ???????????????????# "T + + """ """ # #?# #???? | | ???????????????????# """ ### """ """ # #?# #???? | | ???????????????????# #?# # #?# #???? | | ???????????????????####+###?# # #?# #???? | | ????????????????????# #######+##### ###%#???? | | ????????????######### %o % % % #???? | | ??????? ^ a % #???? | | ???????????########## Yg g #???? | | ????????????????????# g@####### #####+#####???? | | ????"""???????????#####+#####???# #?? ????????? | | ????"""???????????# #???# #? ?????????? | | ????"""???????????# "" / #???# # """?"""?????? | | ??????????????????# "T" #???# # """?"""?????? | | ????"""???????????# #???# # """?"""?????? | | ????"""???????????#########+#???# #?????????????? | | ????"""???????????????????# #???# #?????????????? | | ??????????????????"""?????# #???# #?????????????? | | ??????????????????"""?????# #???# #?????????????? | | ??????????????????"""????? #???? ??????????????? | | ?????????????????????????? #???? ??????????????? | | ??????????????????"""????? #????#??????????????? | | ??????????????????"""????? #???????????????????? | | ??????????????????"""????? #?????????????"""""?? | | ?????????????????????????? ?????????????"""""?? | | ????????????????????????? ?????????????"""""?? | | ????????????????????????? ?????????????"""""?? | | ????????????????????????? ?????????????"""""?? | | ????????????????????????? ?????????????"""""?? | | ?????????????????????????####?????????????"""""?? | | ????????????????????????????????????????????????? | | ????????????????????????"""?????????????????????? | | ????????????????????????"""?????????????????????? | | ????????????????????????"""?????????????????????? | +----------------------------------------------------+ Best States ------------- Heat Dissipation 45 Energy Generation 23 Energy Capacity 220 Matter Stores 400 Matter Capacity 400 Sight Range 18 Robot Scan Range 20 Terrain Scan Density 10 Resistance: KI 20 Resistance: TH 20 Resistance: EX 20 Resistance: EM 20 Resistance: I 20 Resistance: S 20 Resistance: P 20 Evasion (%) 50 Targeting Accuracy 5 Offensive Hacking 10 Item Schematics ----------------- None Robot Schematics ------------------ None Fabricated ------------ Nothing Alien Tech Used ----------------- None Achievements -------------- First Step to Greatness I Survived The Infestation Librarian Tourist Challenges ------------ None Game ------ Seed SigixLauncherDissipator Manual? 0 Play Time 00:27:09 Cumulative 1.2 hours Start 2022.07.19 @ 22:53:54 End 2022.07.19 @ 23:17:45 Sessions 1 Manual Loads 0 Difficulty Adventurer Special Mode None Game No. 2 Rogue 0 Adventurer 2 Explorer 0 Win Type - Total 0 Types 0/0/0/0/0/0/0/0/0 Lore% 2 Gallery% 3 Achievement% 4 Wizard Run 0 Options --------- ASCII 0 Keyboard 0 Movement Mouse Keybinds 0 Fullscreen 1 Font 18/SmallcapsGlow Map View 76x50 Tactical HUD 1 Map Filters NONE Filters NONE Steam 1 RUN: 7ba50c32-f32b-4329-8e27-20b35d5998f6